[Event "GER-ch Youth U18w 2019"]
[Site "Willingen"]
[Date "2019.06.12"]
[Round "6.9"]
[White "Schiewe, Nadin"]
[Black "Gauchel, Verena"]
[Result "1-0"]
[ECO "D94"]
[WhiteElo "1608"]
[BlackElo "1534"]
[Annotator "NA"]
[PlyCount "105"]
[EventDate "2019.06.07"]
[EventType "swiss"]
[EventRounds "9"]
[EventCountry "GER"]
[SourceTitle "playchess.com"]
[Source "ChessBase"]
[SourceQuality "1"]
[TimeControl "40/5400+30:1800+30"]

1. d4 {[%emt 0:00:00]} Nf6 {[%emt 0:00:00]} 2. c4 {[%emt 0:00:00]} g6 {[%emt 0:00:04]} 3. Nc3 {[%emt 0:00:10]} d5 {[%emt 0:00:26]} 4. e3 {[%emt 0:01:35]} Bg7 {[%emt 0:01:09]} 5. Nf3 {[%emt 0:00:50]} O-O {[%emt 0:01:38]} 6. Bd3 {[%emt 0:01:31]} dxc4 {[%emt 0:04:02]} 7. Bxc4 {[%emt 0:00:12]} Nbd7 {[%emt 0:00:24]} 8. b3 {[%emt 0:02:39]} c5 {[%emt 0:02:23]} 9. Bb2 {[%emt 0:00:48]} b6 {[%emt 0:06:58]} 10. Qe2 {[%emt 0:05:46]} Bb7 {[%emt 0:01:47]} 11. O-O {[%emt 0:07:16]} Qc7 {[%emt 0:10:03]} 12. Ba6 {[%emt 0:02:58]} Bxf3 {[%emt 0:12:01]} 13. Qxf3 {[%emt 0:00:31]} cxd4 {[%emt 0:03:09]} 14. Nb5 {[%emt 0:05:37]} Qc2 {[%emt 0:11:32]} 15. Bxd4 {[%emt 0:00:34]} e5 {[%emt 0:10:56]} 16. Rfc1 {[%emt 0:11:17]} Qd2 {[%emt 0:04:17]} 17. Bc3 {[%emt 0:02:43]} Qd5 {[%emt 0:02:20]} 18. Bb7 {[%emt 0:06:02]} Qxf3 {[%emt 0:00:40]} 19. Bxf3 {[%emt 0:03:04]} e4 {[%emt 0:01:08]} 20. Be2 {[%emt 0:00:23]} a6 {[%emt 0:04:19]} 21. Nc7 {[%emt 0:02:17]} Ra7 {[%emt 0:04:58]} 22. Nxa6 {[%emt 0:01:55]} Nd5 {[%emt 0:01:42]} 23. Bxg7 {[%emt 0:00:33]} Kxg7 {[%emt 0:00:01]} 24. b4 {[%emt 0:10:37]} Rfa8 {[%emt 0:02:54]} 25. b5 {[%emt 0:01:37]} N7f6 {[%emt 0:01:05]} 26. Rc4 {[%emt 0:02:33]} h6 {[%emt 0:01:43]} 27. Rac1 {[%emt 0:01:33]} Rb7 {[%emt 0:01:16]} 28. Bd1 {[%emt 0:02:52]} g5 {[%emt 0:01:41]} 29. g4 {[%emt 0:01:41]} Kg6 {[%emt 0:00:48]} 30. h3 {[%emt 0:05:52]} Re7 {[%emt 0:00:58]} 31. Bc2 {[%emt 0:01:26]} Kg7 {[%emt 0:00:42]} 32. a4 {[%emt 0:01:14]} Re6 {[%emt 0:01:27]} 33. Bb3 {[%emt 0:01:50]} Re7 {[%emt 0:01:02]} 34. Nc7 {[%emt 0:01:42]} Rb8 {[%emt 0:01:39]} 35. Nxd5 {[%emt 0:02:09]} Nxd5 {[%emt 0:00:01]} 36. Rd4 {[%emt 0:00:16]} Nf6 {[%emt 0:00:59]} 37. Rcc4 {[%emt 0:01:13]} Re5 {[%emt 0:03:51]} 38. Rc6 {[%emt 0:02:19]} Ne8 {[%emt 0:00:52]} 39. Bc2 {[%emt 0:01:23]} Nf6 {[%emt 0:01:59]} 40. Rdd6 {[%emt 0:02:32]} Nd5 {[%emt 0:00:03]} 41. Bb3 {[%emt 0:30:58]} Ne7 {[%emt 0:10:09]} 42. Rxb6 {[%emt 0:00:00]} Rxb6 {[%emt 0:00:54]} 43. Rxb6 {[%emt 0:00:00]} Rc5 {[%emt 0:01:34]} 44. Rb7 {[%emt 0:00:00]} Kf8 {[%emt 0:02:00]} 45. a5 {[%emt 0:00:00]} Rc1+ {[%emt 0:02:16]} 46. Kg2 {[%emt 0:00:00]} Rc3 {[%emt 0:00:38]} 47. a6 {[%emt 0:00:00]} Nc8 {[%emt 0:02:24]} 48. Bxf7 {[%emt 0:00:00]} Nd6 {[%emt 0:05:05]} 49. a7 {[%emt 0:00:00]} Nxb7 {[%emt 0:00:57]} 50. a8=Q+ {[%emt 0:00:00]} Kxf7 {[%emt 0:00:06]} 51. Qxb7+ {[%emt 0:00:00]} Kf6 {[%emt 0:00:47]} 52. Qxe4 {[%emt 0:00:00]} Rb3 {[%emt 0:00:28]} 53. b6 {normal} 1-0

[Event "GER-ch Youth U18w 2019"]
[Site "Willingen"]
[Date "2019.06.12"]
[Round "6.10"]
[White "Fuchs, Emily"]
[Black "Trams, Emma Joe"]
[Result "1/2-1/2"]
[ECO "C44"]
[WhiteElo "1384"]
[BlackElo "1418"]
[Annotator "NA"]
[PlyCount "75"]
[EventDate "2019.06.07"]
[EventType "swiss"]
[EventRounds "9"]
[EventCountry "GER"]
[SourceTitle "playchess.com"]
[Source "ChessBase"]
[SourceQuality "1"]
[TimeControl "40/5400+30:1800+30"]

1. e4 {[%emt 0:00:00]} e5 {[%emt 0:00:00]} 2. Nf3 {[%emt 0:00:00]} Nc6 {[%emt 0:00:00]} 3. d4 {[%emt 0:00:00]} exd4 {[%emt 0:00:03]} 4. Nxd4 {[%emt 0:00:00]} Nxd4 {[%emt 0:00:08]} 5. Qxd4 {[%emt 0:00:00]} d6 {[%emt 0:00:25]} 6. Bc4 {[%emt 0:00:47]} Be6 {[%emt 0:00:56]} 7. O-O {[%emt 0:00:48]} Nf6 {[%emt 0:00:35]} 8. Nc3 {[%emt 0:03:44]} Be7 {[%emt 0:01:05]} 9. Bg5 {[%emt 0:09:21]} h6 {[%emt 0:00:58]} 10. Bh4 {[%emt 0:02:53]} O-O {[%emt 0:00:55]} 11. Rad1 {[%emt 0:03:16]} Re8 {[%emt 0:01:06]} 12. Bxe6 {[%emt 0:00:48]} fxe6 {[%emt 0:00:20]} 13. Rfe1 {[%emt 0:07:24]} e5 {[%emt 0:02:00]} 14. Qc4+ {[%emt 0:05:42]} Kh8 {[%emt 0:01:00]} 15. Bg3 {[%emt 0:01:53]} Bf8 {[%emt 0:01:22]} 16. f4 {[%emt 0:10:56]} exf4 {[%emt 0:00:52]} 17. Bxf4 {[%emt 0:00:33]} Qc8 {[%emt 0:01:47]} 18. Nb5 {[%emt 0:06:15]} Re7 {[%emt 0:02:37]} 19. e5 {[%emt 0:07:30]} dxe5 {[%emt 0:02:00]} 20. Rxe5 {[%emt 0:01:47]} c6 {[%emt 0:01:04]} 21. Rxe7 {[%emt 0:01:38]} Bxe7 {[%emt 0:00:27]} 22. Nd6 {[%emt 0:05:18]} Bxd6 {[%emt 0:01:55]} 23. Rxd6 {[%emt 0:05:48]} Qf5 {[%emt 0:04:37]} 24. Rd4 {[%emt 0:10:51]} Re8 {[%emt 0:03:53]} 25. Bd2 {[%emt 0:05:53]} Re4 {[%emt 0:05:19]} 26. Rxe4 {[%emt 0:00:32]} Qxe4 {[%emt 0:01:49]} 27. Qxe4 {[%emt 0:00:19]} Nxe4 {[%emt 0:00:07]} 28. Be3 {[%emt 0:00:11]} a6 {[%emt 0:00:25]} 29. Kf1 {[%emt 0:01:06]} Kg8 {[%emt 0:00:28]} 30. Ke2 {[%emt 0:00:29]} Kf7 {[%emt 0:00:37]} 31. Kd3 {[%emt 0:00:37]} Nf6 {[%emt 0:00:23]} 32. Kd4 {[%emt 0:04:00]} Ke6 {[%emt 0:00:52]} 33. h3 {[%emt 0:01:41]} h5 {[%emt 0:01:10]} 34. Bf2 {[%emt 0:00:37]} g6 {[%emt 0:00:29]} 35. a4 {[%emt 0:02:30]} Nd5 {[%emt 0:01:41]} 36. g3 {[%emt 0:01:09]} Kd6 {[%emt 0:01:08]} 37. c4 {[%emt 0:00:51]} Nf6 {[%emt 0:00:58]} 38. b3 {normal} 1/2-1/2

[Event "GER-ch Youth U18w 2019"]
[Site "Willingen"]
[Date "2019.06.12"]
[Round "6.11"]
[White "Kuemmel, Tina"]
[Black "Peters, Jenna Maria Lara"]
[Result "1/2-1/2"]
[ECO "A06"]
[WhiteElo "1446"]
[BlackElo "1594"]
[Annotator "NA"]
[PlyCount "65"]
[EventDate "2019.06.07"]
[EventType "swiss"]
[EventRounds "9"]
[EventCountry "GER"]
[SourceTitle "playchess.com"]
[Source "ChessBase"]
[SourceQuality "1"]
[TimeControl "40/5400+30:1800+30"]

1. Nf3 {[%emt 0:00:00]} d5 {[%emt 0:00:00]} 2. g3 {[%emt 0:00:00]} Nf6 {[%emt 0:00:04]} 3. Bg2 {[%emt 0:00:00]} Bf5 {[%emt 0:00:31]} 4. d4 {[%emt 0:02:20]} h6 {[%emt 0:00:19]} 5. c4 {[%emt 0:01:11]} e6 {[%emt 0:04:24]} 6. Nc3 {[%emt 0:01:00]} Be7 {[%emt 0:01:33]} 7. Ne5 {[%emt 0:05:46]} c6 {[%emt 0:02:20]} 8. O-O {[%emt 0:02:14]} Nbd7 {[%emt 0:02:30]} 9. cxd5 {[%emt 0:01:53]} exd5 10. Nxd7 {[%emt 0:09:41]} Qxd7 {[%emt 0:01:37]} 11. Re1 {[%emt 0:00:18]} O-O {[%emt 0:03:29]} 12. f3 {[%emt 0:04:06]} Rad8 13. Be3 {[%emt 0:01:47]} Bh7 {[%emt 0:16:03]} 14. Bf2 {[%emt 0:09:19]} Rfe8 {[%emt 0:13:52]} 15. h3 {[%emt 0:05:03]} Qc7 16. e4 {[%emt 0:00:08]} dxe4 {[%emt 0:03:22]} 17. fxe4 Bb4 {[%emt 0:03:53]} 18. e5 {[%emt 0:04:19]} Bxc3 {[%emt 0:09:37]} 19. bxc3 Nd5 {[%emt 0:15:49]} 20. Qf3 {[%emt 0:09:08]} Qd7 21. g4 {[%emt 0:07:32]} f6 {[%emt 0:02:57]} 22. Bh4 {[%emt 0:01:53]} g5 {[%emt 0:04:54]} 23. Bg3 {[%emt 0:00:09]} fxe5 {[%emt 0:01:08]} 24. Bxe5 {[%emt 0:00:38]} Rf8 {[%emt 0:01:19]} 25. Qg3 {[%emt 0:00:21]} Nb6 {[%emt 0:03:15]} 26. Re2 {[%emt 0:11:16]} Rde8 {[%emt 0:02:15]} 27. Rae1 {[%emt 0:00:07]} Nc4 {[%emt 0:00:41]} 28. Be4 {[%emt 0:04:35]} Bxe4 {[%emt 0:02:15]} 29. Rxe4 {[%emt 0:00:06]} Qd5 {[%emt 0:00:17]} 30. Qd3 {[%emt 0:02:47]} Nxe5 {[%emt 0:02:22]} 31. Rxe5 {[%emt 0:00:08]} Rxe5 {[%emt 0:00:03]} 32. Rxe5 {[%emt 0:00:08]} Qf7 {[%emt 0:01:36]} 33. Qe2 {[%emt 0:06:40] normal} 1/2-1/2

[Event "GER-ch Youth U18w 2019"]
[Site "Willingen"]
[Date "2019.06.12"]
[Round "6.12"]
[White "Schneider, Xenia"]
[Black "Kadach, Maria"]
[Result "1-0"]
[ECO "B13"]
[WhiteElo "1364"]
[BlackElo "1448"]
[Annotator "NA"]
[PlyCount "81"]
[EventDate "2019.06.07"]
[EventType "swiss"]
[EventRounds "9"]
[EventCountry "GER"]
[SourceTitle "playchess.com"]
[Source "ChessBase"]
[SourceQuality "1"]
[TimeControl "40/5400+30:1800+30"]

1. e4 c6 {[%emt 0:00:00]} 2. d4 {[%emt 0:00:00]} d5 {[%emt 0:00:00]} 3. exd5 {[%emt 0:00:00]} cxd5 {[%emt 0:00:00]} 4. Bd3 {[%emt 0:00:00]} Nc6 {[%emt 0:00:00]} 5. c3 {[%emt 0:00:09]} Qc7 {[%emt 0:00:34]} 6. Ne2 {[%emt 0:03:06]} e6 7. Bf4 {[%emt 0:01:54]} Bd6 {[%emt 0:00:36]} 8. Bxd6 {[%emt 0:00:09]} Qxd6 {[%emt 0:00:05]} 9. Qb3 {[%emt 0:02:28]} Nf6 {[%emt 0:01:28]} 10. Nd2 {[%emt 0:03:08]} O-O {[%emt 0:01:52]} 11. O-O {[%emt 0:00:15]} Rb8 {[%emt 0:04:21]} 12. Ng3 {[%emt 0:02:56]} Bd7 {[%emt 0:05:37]} 13. Qd1 Rfc8 14. f4 {[%emt 0:08:19]} b5 {[%emt 0:06:44]} 15. Nh5 {[%emt 0:01:33]} Qe7 16. Qf3 {[%emt 0:00:57]} g6 {[%emt 0:07:53]} 17. Nxf6+ {[%emt 0:00:59]} Qxf6 18. Qg3 Qg7 {[%emt 0:05:40]} 19. Rf3 {[%emt 0:03:53]} b4 {[%emt 0:11:11]} 20. Ba6 {[%emt 0:03:43]} Rd8 {[%emt 0:03:00]} 21. Nb3 {[%emt 0:01:05]} bxc3 22. bxc3 Rb6 {[%emt 0:05:28]} 23. Bd3 {[%emt 0:02:15]} Bc8 {[%emt 0:16:26]} 24. Re1 {[%emt 0:11:18]} Ba6 {[%emt 0:02:04]} 25. h4 Bxd3 {[%emt 0:00:49]} 26. Rxd3 {[%emt 0:05:33]} Ne7 {[%emt 0:03:02]} 27. Qg5 {[%emt 0:02:05]} Qf8 {[%emt 0:02:35]} 28. h5 {[%emt 0:03:44]} Nf5 {[%emt 0:06:23]} 29. hxg6 {[%emt 0:00:44]} fxg6 {[%emt 0:07:39]} 30. g4 {[%emt 0:04:40]} Ne7 {[%emt 0:02:04]} 31. Rh3 {[%emt 0:10:27]} Re8 {[%emt 0:04:53]} 32. Nc5 {[%emt 0:07:20]} Qf7 {[%emt 0:01:07]} 33. Nd7 {[%emt 0:04:26]} Rb2 {[%emt 0:02:33]} 34. Nf6+ {[%emt 0:00:23]} Kh8 {[%emt 0:02:13]} 35. Rxh7+ {[%emt 0:00:15]} Qxh7 {[%emt 0:00:11]} 36. Nxh7 {[%emt 0:00:08]} Kxh7 {[%emt 0:00:04]} 37. Qf6 {[%emt 0:00:39]} Rbb8 {[%emt 0:01:00]} 38. Kf2 {[%emt 0:00:51]} Ng8 {[%emt 0:00:36]} 39. Rh1+ {[%emt 0:00:26]} Nh6 {[%emt 0:00:12]} 40. Qf7+ {[%emt 0:00:14]} Kh8 {[%emt 0:00:47]} 41. Rxh6# {[%emt 0:30:06] normal} 1-0

[Event "GER-ch Youth U18w 2019"]
[Site "Willingen"]
[Date "2019.06.12"]
[Round "6.13"]
[White "Gesell, Patricia"]
[Black "Mundt, Alexandra"]
[Result "1-0"]
[ECO "A06"]
[WhiteElo "1046"]
[BlackElo "1797"]
[Annotator "NA"]
[PlyCount "28"]
[EventDate "2019.06.07"]
[EventType "swiss"]
[EventRounds "9"]
[EventCountry "GER"]
[SourceTitle "playchess.com"]
[Source "ChessBase"]
[SourceQuality "1"]
[TimeControl "40/5400+30:1800+30"]

1. Nf3 {[%emt 0:00:00]} d5 {[%emt 0:00:00]} 2. c4 {[%emt 0:00:00]} c6 {[%emt 0:00:00]} 3. g3 {[%emt 0:00:15]} h6 {[%emt 0:00:00]} 4. Bg2 {[%emt 0:00:51]} Bf5 {[%emt 0:00:11]} 5. b3 {[%emt 0:01:52]} e6 {[%emt 0:00:46]} 6. Bb2 a5 {[%emt 0:02:31]} 7. O-O {[%emt 0:04:19]} Nf6 {[%emt 0:05:03]} 8. e3 {[%emt 0:02:22]} dxc4 {[%emt 0:03:23]} 9. Re1 {[%emt 0:06:58]} Nbd7 {[%emt 0:15:18]} 10. bxc4 {[%emt 0:07:29]} Bd3 {[%emt 0:03:23]} 11. Ne5 {[%emt 0:05:49]} Nxe5 {[%emt 0:10:56]} 12. Bxe5 {[%emt 0:06:26]} Nd7 13. Bb2 {[%emt 0:01:13]} Bxc4 {[%emt 0:03:09]} 14. Nc3 Nc5 {[%emt 0:05:25] normal} 1-0

[Event "GER-ch Youth U18w 2019"]
[Site "Willingen"]
[Date "2019.06.13"]
[Round "7.2"]
[White "Nguyen, Ha Thanh"]
[Black "Poetsch, Leonore"]
[Result "1/2-1/2"]
[ECO "C12"]
[WhiteElo "1940"]
[BlackElo "1982"]
[Annotator "NA"]
[PlyCount "74"]
[EventDate "2019.06.07"]
[EventType "swiss"]
[EventRounds "9"]
[EventCountry "GER"]
[SourceTitle "playchess.com"]
[Source "ChessBase"]
[SourceQuality "1"]
[TimeControl "40/5400+30:1800+30"]

1. e4 {[%emt 0:00:00]} e6 {[%emt 0:00:00]} 2. d4 {[%emt 0:00:00]} d5 {[%emt 0:00:00]} 3. Nc3 {[%emt 0:00:00]} Nf6 {[%emt 0:00:00]} 4. Bg5 {[%emt 0:00:00]} Bb4 {[%emt 0:00:00]} 5. e5 {[%emt 0:00:08]} h6 {[%emt 0:00:05]} 6. Bd2 {[%emt 0:00:17]} Bxc3 {[%emt 0:00:07]} 7. bxc3 {[%emt 0:00:11]} Ne4 {[%emt 0:00:05]} 8. Qg4 {[%emt 0:00:29]} g6 {[%emt 0:00:13]} 9. Qf4 {[%emt 0:01:10]} c5 {[%emt 0:03:15]} 10. Bd3 {[%emt 0:00:35]} Nxd2 {[%emt 0:00:46]} 11. Qxd2 {[%emt 0:00:12]} Nc6 {[%emt 0:01:54]} 12. Nf3 {[%emt 0:01:16]} Qa5 {[%emt 0:02:13]} 13. dxc5 Qxc5 {[%emt 0:01:15]} 14. h4 {[%emt 0:02:59]} Bd7 {[%emt 0:02:14]} 15. a4 {[%emt 0:01:35]} d4 {[%emt 0:08:01]} 16. Qf4 {[%emt 0:08:23]} Qxc3+ {[%emt 0:07:53]} 17. Ke2 {[%emt 0:00:20]} O-O-O {[%emt 0:15:23]} 18. Rhb1 {[%emt 0:12:58]} f5 {[%emt 0:03:57]} 19. Nd2 {[%emt 0:01:47]} g5 {[%emt 0:04:26]} 20. hxg5 {[%emt 0:02:51]} hxg5 {[%emt 0:00:07]} 21. Qxg5 {[%emt 0:00:18]} Nxe5 {[%emt 0:03:22]} 22. Qf4 {[%emt 0:00:46]} Nf7 {[%emt 0:08:18]} 23. Nb3 {[%emt 0:10:16]} e5 {[%emt 0:03:17]} 24. Qd2 {[%emt 0:05:18]} Qc6 {[%emt 0:10:58]} 25. Na5 {[%emt 0:06:54]} Qxg2 {[%emt 0:01:25]} 26. Rg1 {[%emt 0:00:54]} Qd5 {[%emt 0:08:01]} 27. Qb4 {[%emt 0:03:47]} Nd6 {[%emt 0:04:42]} 28. Rab1 {[%emt 0:00:48]} b6 {[%emt 0:06:23]} 29. Rg6 {[%emt 0:04:39]} Qxa5 {[%emt 0:01:45]} 30. Qxa5 {[%emt 0:00:20]} bxa5 {[%emt 0:00:07]} 31. Rxd6 {[%emt 0:00:12]} Kc7 {[%emt 0:04:22]} 32. Ra6 {[%emt 0:02:28]} e4 {[%emt 0:00:35]} 33. Rxa7+ {[%emt 0:00:14]} Kd6 {[%emt 0:00:09]} 34. Ra6+ {[%emt 0:07:23]} Ke7 {[%emt 0:00:51]} 35. Bb5 {[%emt 0:01:43]} Ra8 {[%emt 0:00:25]} 36. Rg6 {[%emt 0:01:35]} Rhg8 {[%emt 0:00:43]} 37. Rh6 {[%emt 0:01:03]} Bxb5+ {[%emt 0:00:27] normal} 1/2-1/2

[Event "GER-ch Youth U18w 2019"]
[Site "Willingen"]
[Date "2019.06.13"]
[Round "7.3"]
[White "Ratay, Meike"]
[Black "Arnhold, Steffi"]
[Result "0-1"]
[ECO "B32"]
[WhiteElo "1991"]
[BlackElo "1996"]
[Annotator "NA"]
[PlyCount "80"]
[EventDate "2019.06.07"]
[EventType "swiss"]
[EventRounds "9"]
[EventCountry "GER"]
[SourceTitle "playchess.com"]
[Source "ChessBase"]
[SourceQuality "1"]
[TimeControl "40/5400+30:1800+30"]

1. e4 {[%emt 0:00:00]} c5 {[%emt 0:00:00]} 2. Nf3 {[%emt 0:00:00]} Nc6 {[%emt 0:00:00]} 3. d4 {[%emt 0:00:00]} cxd4 {[%emt 0:00:00]} 4. Nxd4 {[%emt 0:00:00]} Qb6 {[%emt 0:00:36]} 5. Nb3 {[%emt 0:03:27]} Nf6 {[%emt 0:00:27]} 6. Nc3 {[%emt 0:01:16]} e6 {[%emt 0:01:05]} 7. Be3 {[%emt 0:01:22]} Qc7 {[%emt 0:00:23]} 8. a3 {[%emt 0:03:36]} a6 {[%emt 0:04:25]} 9. Be2 {[%emt 0:03:23]} Be7 {[%emt 0:03:15]} 10. O-O {[%emt 0:00:37]} b5 {[%emt 0:02:11]} 11. f4 {[%emt 0:05:25]} d6 {[%emt 0:01:11]} 12. Bf3 {[%emt 0:08:40]} Bb7 {[%emt 0:02:24]} 13. Qe2 {[%emt 0:06:24]} O-O {[%emt 0:05:01]} 14. Qf2 {[%emt 0:08:05]} Rac8 {[%emt 0:07:55]} 15. Rac1 {[%emt 0:04:02]} Qb8 {[%emt 0:04:27]} 16. Rfd1 {[%emt 0:04:01]} Rfd8 {[%emt 0:04:40]} 17. a4 {[%emt 0:10:38]} b4 {[%emt 0:08:37]} 18. Ne2 {[%emt 0:00:45]} Bf8 {[%emt 0:10:20]} 19. c3 {[%emt 0:02:45]} bxc3 {[%emt 0:04:28]} 20. Nxc3 {[%emt 0:00:47]} Qa8 {[%emt 0:04:54]} 21. a5 {[%emt 0:04:43]} Nb4 {[%emt 0:08:45]} 22. Bb6 {[%emt 0:04:38]} Rd7 {[%emt 0:03:04]} 23. e5 {[%emt 0:05:48]} Bxf3 {[%emt 0:05:03]} 24. gxf3 {[%emt 0:02:53]} Nfd5 {[%emt 0:01:37]} 25. Nxd5 {[%emt 0:02:05]} Nxd5 {[%emt 0:00:48]} 26. Be3 {[%emt 0:03:16]} Rb7 {[%emt 0:03:15]} 27. Rxc8 {[%emt 0:05:12]} Qxc8 {[%emt 0:01:18]} 28. Rd3 {[%emt 0:01:44]} Qc4 {[%emt 0:01:22]} 29. Nc1 {[%emt 0:02:29]} dxe5 {[%emt 0:01:38]} 30. b3 {[%emt 0:00:52]} Qb5 {[%emt 0:01:47]} 31. fxe5 {[%emt 0:00:35]} Qxa5 {[%emt 0:00:33]} 32. Kh1 {[%emt 0:01:22]} Qa1 {[%emt 0:01:22]} 33. f4 {[%emt 0:00:53]} Rc7 34. Rd1 {[%emt 0:00:45]} Qb1 {[%emt 0:01:38]} 35. Qf3 {[%emt 0:01:12]} Rc3 {[%emt 0:01:12]} 36. Nd3 {[%emt 0:01:24]} Qxb3 {[%emt 0:00:15]} 37. Bd4 {[%emt 0:00:28]} Rc4 {[%emt 0:01:29]} 38. f5 {[%emt 0:01:05]} Rxd4 {[%emt 0:02:24]} 39. fxe6 {[%emt 0:00:19]} Nf4 {[%emt 0:00:50]} 40. exf7+ {[%emt 0:00:41]} Qxf7 {[%emt 0:01:12] normal} 0-1

[Event "GER-ch Youth U18w 2019"]
[Site "Willingen"]
[Date "2019.06.13"]
[Round "7.4"]
[White "Kobald, Jacqueline"]
[Black "Moenster, Madita"]
[Result "0-1"]
[ECO "B32"]
[WhiteElo "1839"]
[BlackElo "1994"]
[Annotator "NA RC"]
[PlyCount "94"]
[EventDate "2019.06.07"]
[EventType "swiss"]
[EventRounds "9"]
[EventCountry "GER"]
[SourceTitle "playchess.com"]
[Source "ChessBase"]
[SourceQuality "1"]
[TimeControl "40/5400+30:1800+30"]

1. e4 {[%emt 0:00:00]} c5 {[%emt 0:00:00]} 2. Nf3 {[%emt 0:00:00]} Nc6 {[%emt 0:00:00]} 3. d4 {[%emt 0:00:00]} cxd4 {[%emt 0:00:00]} 4. Nxd4 {[%emt 0:00:06]} e5 {[%emt 0:00:19]} 5. Nb5 {[%emt 0:01:56]} d6 {[%emt 0:00:24]} 6. N1c3 {[%emt 0:01:37]} a6 {[%emt 0:00:49]} 7. Na3 {[%emt 0:00:10]} Be7 {[%emt 0:00:54]} 8. Nd5 {[%emt 0:06:04]} Nf6 {[%emt 0:14:36]} 9. Nxf6+ {[%emt 0:03:52]} Bxf6 {[%emt 0:03:11]} 10. c4 {[%emt 0:18:47]} O-O {[%emt 0:08:23]} 11. Bd3 {[%emt 0:05:19]} Bg5 {[%emt 0:04:53]} 12. O-O {[%emt 0:01:32]} Kh8 {[%emt 0:03:08]} 13. Kh1 {[%emt 0:03:21]} Bf4 {[%emt 0:16:38]} 14. g3 {[%emt 0:19:17]} Bxc1 {[%emt 0:04:18]} 15. Rxc1 {[%emt 0:00:16]} Qe7 {[%emt 0:01:45]} 16. Nc2 {[%emt 0:01:11]} f5 {[%emt 0:07:35]} 17. f3 {[%emt 0:08:53]} f4 {[%emt 0:04:27]} 18. g4 {[%emt 0:03:37]} Rf6 {[%emt 0:02:56]} 19. Rf2 {[%emt 0:02:39]} Rg6 {[%emt 0:04:19]} 20. Rg2 {[%emt 0:03:16]} h5 {[%emt 0:08:02]} 21. gxh5 {[%emt 0:04:27]} Rh6 {[%emt 0:01:22]} 22. Rg6 {[%emt 0:01:59]} Rxh5 {[%emt 0:06:54]} 23. Be2 {[%emt 0:04:40]} Be6 {[%emt 0:00:35]} 24. Qg1 {[%emt 0:01:16]} Kh7 {[%emt 0:01:23]} 25. Rd1 {[%emt 0:01:17]} Qf7 {[%emt 0:01:05]} 26. Rg5 {[%emt 0:01:00]} Rd8 {[%emt 0:01:08]} 27. b3 {[%emt 0:00:37]} Rh6 {[%emt 0:00:58]} 28. Qg2 {[%emt 0:01:17]} Rd7 {[%emt 0:01:19]} 29. Rg1 {[%emt 0:00:55]} a5 {[%emt 0:00:36]} 30. Qf2 {[%emt 0:01:15]} a4 {[%emt 0:00:56]} 31. Qb6 {[%emt 0:00:56]} Nd8 {[%emt 0:01:32]} 32. Qb5 {[%emt 0:01:17]} Bh3 {[%emt 0:00:39]} 33. Rd1 {[%emt 0:01:32]} Qf6 {[%emt 0:00:32]} 34. Rgg1 {[%emt 0:00:44]} Qh4 {[%emt 0:00:10]} 35. Rd2 {[%emt 0:00:39]} Bg4 {[%emt 0:00:59]} 36. Rg2 {[%emt 0:00:32]} Bh3 {[%emt 0:00:31]} 37. Rg1 {[%emt 0:00:07]} axb3 {[%emt 0:00:06]} 38. axb3 {[%emt 0:00:27]} Be6 {[%emt 0:00:30]} 39. Bf1 {[%emt 0:00:55]} Nf7 {[%emt 0:00:26]} 40. Qb6 {[%emt 0:01:19]} Ng5 {[%emt 0:01:00]} 41. Qf2 {[%emt 0:02:46]} Qh5 {[%emt 0:02:52]} 42. Ne1 {[%emt 0:05:46]} Nf7 {[%emt 0:06:56]} 43. Qg2 {[%emt 0:04:36]} g5 {[%emt 0:02:02]} 44. Ra2 {[%emt 0:03:23]} Rg6 {[%emt 0:04:00]} 45. Nd3 {[%emt 0:01:18]} g4 {[%emt 0:04:05]} 46. fxg4 {[%emt 0:02:02]} Bxg4 {[%emt 0:02:44]} 47. Qf2 {[%emt 0:02:19]} Ng5 {[%emt 0:02:16] normal} 0-1

[Event "GER-ch Youth U18w 2019"]
[Site "Willingen"]
[Date "2019.06.13"]
[Round "7.5"]
[White "Ziegenfuss, Antonia"]
[Black "Koehler, Inken"]
[Result "1-0"]
[ECO "A22"]
[WhiteElo "2111"]
[BlackElo "1975"]
[Annotator "NA"]
[PlyCount "77"]
[EventDate "2019.06.07"]
[EventType "swiss"]
[EventRounds "9"]
[EventCountry "GER"]
[SourceTitle "playchess.com"]
[Source "ChessBase"]
[SourceQuality "1"]
[TimeControl "40/5400+30:1800+30"]

1. c4 e5 {[%emt 0:00:00]} 2. Nc3 {[%emt 0:00:00]} Nf6 {[%emt 0:00:03]} 3. g3 {[%emt 0:00:00]} d5 {[%emt 0:00:17]} 4. cxd5 {[%emt 0:00:08]} Nxd5 {[%emt 0:00:04]} 5. Bg2 {[%emt 0:00:06]} Ne7 {[%emt 0:00:12]} 6. Nf3 {[%emt 0:00:42]} Nbc6 {[%emt 0:00:18]} 7. O-O {[%emt 0:00:34]} g6 {[%emt 0:01:20]} 8. Rb1 {[%emt 0:02:51]} Bg7 {[%emt 0:03:05]} 9. b4 {[%emt 0:09:13]} a6 {[%emt 0:04:03]} 10. a4 {[%emt 0:04:49]} O-O {[%emt 0:05:12]} 11. d3 {[%emt 0:05:52]} Kh8 {[%emt 0:14:30]} 12. b5 {[%emt 0:19:06]} Nd4 {[%emt 0:06:44]} 13. Nxd4 {[%emt 0:08:24]} exd4 {[%emt 0:00:13]} 14. Ne4 {[%emt 0:02:15]} axb5 {[%emt 0:10:48]} 15. axb5 {[%emt 0:04:15]} Ra7 {[%emt 0:03:26]} 16. Bd2 {[%emt 0:14:12]} Be6 {[%emt 0:04:23]} 17. Ra1 {[%emt 0:03:43]} Rxa1 {[%emt 0:01:49]} 18. Qxa1 {[%emt 0:00:05]} Bd5 {[%emt 0:01:22]} 19. Bb4 {[%emt 0:03:48]} Re8 {[%emt 0:06:17]} 20. Rc1 {[%emt 0:08:12]} h6 {[%emt 0:06:24]} 21. b6 {[%emt 0:03:52]} cxb6 {[%emt 0:21:41]} 22. Nd6 {[%emt 0:00:12]} Rf8 {[%emt 0:00:25]} 23. Bxd5 {[%emt 0:00:32]} Nxd5 {[%emt 0:00:14]} 24. Nxb7 {[%emt 0:00:20]} Qe8 {[%emt 0:00:41]} 25. Bxf8 {[%emt 0:00:17]} Qxf8 {[%emt 0:00:09]} 26. Qa7 {[%emt 0:01:46]} Kh7 {[%emt 0:02:40]} 27. Ra1 {[%emt 0:02:55]} Qe7 {[%emt 0:01:24]} 28. Re1 {[%emt 0:02:49]} h5 {[%emt 0:02:11]} 29. Qb8 {[%emt 0:01:51]} Be5 {[%emt 0:01:07]} 30. Qc8 {[%emt 0:00:37]} Bf6 {[%emt 0:00:54]} 31. Qc6 {[%emt 0:00:27]} Nb4 {[%emt 0:01:42]} 32. Qxb6 {[%emt 0:00:48]} Nxd3 {[%emt 0:00:40]} 33. Rb1 {[%emt 0:00:46]} Ne5 {[%emt 0:00:40]} 34. Qd6 {[%emt 0:00:35]} Qxd6 {[%emt 0:01:18]} 35. Nxd6 {[%emt 0:00:05]} Kg7 {[%emt 0:00:09]} 36. Rb7 {[%emt 0:00:27]} g5 {[%emt 0:00:51]} 37. Ne8+ {[%emt 0:00:38]} Kg6 {[%emt 0:00:08]} 38. Rb6 {[%emt 0:00:09]} Nd7 {[%emt 0:00:33]} 39. Rd6 {[%emt 0:00:07] normal} 1-0